[Event "BL 2024-25"]
[Site "Austria"]
[Date "2024.10.09"]
[Round "1.13"]
[White "Nisipeanu, Liviu-Dieter"]
[Black "Ragger, Markus"]
[Result "1/2-1/2"]
[ECO "C50"]
[WhiteElo "2584"]
[BlackElo "2584"]
[Annotator "TA"]
[PlyCount "116"]
[EventDate "2024.08.28"]
[EventType "team-tourn"]
[EventCountry "AUT"]
[SourceTitle "playchess.com"]
[Source "ChessBase"]
[SourceQuality "1"]
[WhiteTeam "Mayrhofen-Zell-Ziller"]
[BlackTeam "Maria Saal"]
[TimeControl "40/5400+30:1800+30"]

{[%evp 9,116,15,34,0,15,0,46,52,33,47,52,35,27,29,28,8,42,36,35,41,41,30,57,47,50,57,47,64,69,67,78,75,72,74,81,83,76,82,72,78,77,76,83,83,83,83,83,90,84,83,83,83,83,78,83,72,178,175,158,157,175,142,146,145,147,160,148,140,137,133,132,124,123,117,120,0,98,55,55,57,57,8,8,8,8,0,0,0,0,0,0,0,0,0,0,0,0,0,0,0,0,0,0,0,0,0,0,0,0]} 1. e4 {[%emt 0:00:30]} e5 {[%emt 0:00:30]} 2. Nf3 {[%emt 0:00:30]} Nc6 {[%emt 0:00:30]} 3. Bc4 {[%emt 0:00:30]} Bc5 {[%emt 0:00:30]} 4. d3 {[%emt 0:00:30]} d6 {[%emt 0:00:30]} 5. a4 {[%emt 0:00:30]} a5 {[%emt 0:00:30]} 6. Nc3 {[%emt 0:00:30]} Nf6 {[%emt 0:00:30]} 7. Be3 {[%emt 0:00:30]} O-O {[%emt 0:00:30]} (7... Bxe3 $11 8. fxe3 O-O) 8. Bxc5 $14 {[%emt 0:00:30] White is slightly better.} dxc5 {[%emt 0:00:30]} 9. Bb5 {[%emt 0:00:30]} Bg4 {[%emt 0:00:30]} 10. Bxc6 {[%emt 0:00:30]} bxc6 {[%emt 0:00:30]} 11. h3 {[%emt 0:00:30]} Bxf3 {[%emt 0:00:30]} 12. Qxf3 {[%emt 0:00:30]} Rb8 {[%emt 0:00:30]} 13. Rb1 {[%emt 0:00:30]} Qd4 {[%emt 0:00:30][%cal Od4c3] Hoping for ...Qxc3+!} 14. O-O {[%emt 0:00:30]} c4 {[%emt 0:00:30]} 15. Ne2 {[%emt 0:00:30]} Qc5 {[%emt 0:00:30]} 16. Ng3 {[%emt 0:00:30]} Ne8 {[%emt 0:00:30]} 17. dxc4 {[%emt 0:00:30]} Qxc4 {[%emt 0:00:30]} 18. b3 {[%emt 0:00:30]} Qc5 {[%emt 0:00:30]} 19. Rfe1 {[%emt 0:00:30]} Nd6 {[%emt 0:00:30][%cal Of8d8]} 20. Qe3 {[%emt 0:00:30]} Qb6 {[%emt 0:00:30]} 21. Rbd1 {[%emt 0:00:30]} f6 {[%emt 0:00:30]} 22. Qxb6 {[%emt 0:00:30]} Rxb6 {[%emt 0:00:30]} 23. Re3 {[%emt 0:00:30]} g6 {[%emt 0:00:30] Inhibits Nf5.} 24. Rc3 {[%emt 0:00:30]} Kf7 {[%emt 0:00:30]} 25. f3 {[%emt 0:00:30]} Rd8 {[%emt 0:00:30]} 26. Rdd3 {[%emt 0:00:30]} Ke7 {[%emt 0:00:30]} 27. Nf1 {[%emt 0:00:30]} Nb7 {[%emt 0:00:30]} 28. Rxd8 {[%emt 0:00:30]} Kxd8 $16 {[%emt 0:00:30][%mdl 4096] Endgame. KRN-KRN} 29. Nd2 {[%emt 0:00:30]} Kd7 {[%emt 0:00:30]} 30. h4 {[%emt 0:00:30][%cal Bh3h4,Bh4g5][%mdl 32]} Nd6 {[%emt 0:00:30]} 31. Kf2 {[%emt 0:00:30]} Rb8 {[%emt 0:00:30]} 32. g4 {[%emt 0:00:30]} h6 {[%emt 0:00:30] [#]} (32... Rf8 $16) 33. g5 $1 $18 {[%emt 0:00:30][%mdl 512]} hxg5 {[%emt 0:00:30]} 34. hxg5 {[%emt 0:00:30]} f5 {[%emt 0:00:30]} 35. Rc5 {[%emt 0:00:30][%csl LRa5,LRe5]} fxe4 {[%emt 0:00:30]} 36. fxe4 {[%emt 0:00:30]} Rf8+ {[%emt 0:00:30]} 37. Ke3 {[%emt 0:00:30][%cal Od2f3]} Nb7 {[%emt 0:00:30]} 38. Rxe5 {[%emt 0:00:30]} Rh8 {[%emt 0:00:30] [#]} 39. Nc4 $1 {[%emt 0:00:30]} Rh3+ {[%emt 0:00:30]} 40. Kd2 {[%emt 0:00:30] White is more active.} c5 {[%emt 0:00:30][%cal Bc6c5,Bc5c4][%mdl 32]} 41. Rd5+ {[%emt 0:30:30]} Ke6 {[%emt 0:30:30]} 42. Re5+ {[%emt 0:00:30]} Kd7 {[%emt 0:00:30]} 43. Nb2 {[%emt 0:00:30] Nd3 is the strong threat.} Nd6 $1 {[%emt 0:00:30]} 44. Nd3 {[%emt 0:00:30]} (44. Rxc5 $2 Nxe4+ 45. Ke2 Rh2+ (45... Nxc5 $2 46. Nc4 $19) 46. Kd1 Nxc5 $19) 44... c4 {[%emt 0:00:30]} 45. Nc5+ {[%emt 0:00:30]} (45. Nf4 $14 cxb3 46. cxb3 (46. Nxh3 $2 {too greedy.} b2 $19) 46... Rxb3 47. Nxg6 (47. Rxa5 $2 Nc4+ 48. Ke2 Nxa5 $19)) 45... Kc6 $11 {[%emt 0:00:30] The position is equal.} 46. Ne6 {[%emt 0:00:30]} Kb6 {[%emt 0:00:30]} 47. Nf4 {[%emt 0:00:30]} cxb3 $1 {[%emt 0:00:30]} 48. cxb3 {[%emt 0:00:30]} (48. Nxh3 $2 b2 49. Nf2 b1=Q $19 (49... b1=B $2 50. Re6 $18)) 48... Rxb3 {[%emt 0:00:30]} 49. Re6 {[%emt 0:00:30][%cal Oe4e5] And now e5! would win.} (49. Nxg6 Nc4+ 50. Kc2 Nxe5 51. Nxe5 Rg3 52. Nc4+ Kc5 53. Nxa5 Kd4 $19 (53... Rxg5 $2 54. Nb3+ Kc4 55. Nd2+ Kb4 56. Nf1 $19)) 49... Kc5 {[%emt 0:00:30]} 50. e5 {[%emt 0:00:30]} Ne4+ {[%emt 0:00:30]} 51. Kc2 {[%emt 0:00:30]} Rc3+ {[%emt 0:00:30]} 52. Kb2 {[%emt 0:00:30]} Rf3 {[%emt 0:00:30]} 53. Nxg6 {[%emt 0:00:30]} Rf2+ {[%emt 0:00:30]} 54. Kc1 {[%emt 0:00:30]} Rf1+ {[%emt 0:00:30]} 55. Kc2 {[%emt 0:00:30]} Rf2+ {[%emt 0:00:30]} 56. Kc1 {[%emt 0:00:30]} Rf1+ {[%emt 0:00:30]} 57. Kc2 {[%emt 0:00:30]} Rf2+ {[%emt 0:00:30]} 58. Kc1 {[%emt 0:00:30]} Rf1+ {[%emt 0:00:30] White really could win this.   Weighted Error Value: White=0.06 (flawless) /Black=0.06 (flawless) .  Mistake:       	White=1     	Black=2      Inaccurate:     	White=1     	Black=2      OK:         	White=24    	Black=17     Best:        	White=3     	Black=5      Strong:       	---       	Black=2      Brilliant:      	White=1     	---} 1/2-1/2

[Event "BL 2024-25"]
[Site "Austria"]
[Date "2024.10.09"]
[Round "1.14"]
[White "Costa, Leonardo"]
[Black "Vogel, Roven"]
[Result "1/2-1/2"]
[ECO "B90"]
[WhiteElo "2472"]
[BlackElo "2559"]
[Annotator "TA"]
[PlyCount "86"]
[EventDate "2024.08.28"]
[EventType "team-tourn"]
[EventCountry "AUT"]
[SourceTitle "playchess.com"]
[Source "ChessBase"]
[SourceQuality "1"]
[WhiteTeam "Maria Saal"]
[BlackTeam "Mayrhofen-Zell-Ziller"]
[TimeControl "40/5400+30:1800+30"]

{[%evp 10,86,16,0,31,26,47,12,25,25,35,19,35,27,31,30,38,39,31,43,39,-7,-12,0,0,0,4,15,49,35,57,45,47,0,0,0,0,0,0,0,0,0,0,0,0,-5,0,-48,4,4,3,0,0,0,0,6,16,14,16,10,33,25,27,11,35,0,24,0,15,0,22,12,74,51,51,51,51,51,77]} 1. e4 {[%emt 0:00:02]} c5 {[%emt 0:00:07]} 2. Nf3 {[%emt 0:00:03]} d6 {[%emt 0:00:11]} 3. d4 {[%emt 0:00:03]} cxd4 {[%emt 0:00:07]} 4. Nxd4 {[%emt 0:00:03]} Nf6 {[%emt 0:00:09]} 5. Nc3 {[%emt 0:00:04]} a6 {[%emt 0:00:10]} 6. Rg1 {[%emt 0:00:14]} h5 {[%emt 0:00:18]} 7. Bg5 {[%emt 0:00:06]} Nbd7 {[%emt 0:04:37]} 8. Bc4 {[%emt 0:01:41]} Qb6 {[%emt 0:00:53] Die Stellung ist ausgeglichen.} 9. Bb3 {[%emt 0:24:01]} e6 {[%emt 0:00:31]} 10. Qd2 {[%emt 0:06:55]} Nc5 {[%emt 0:04:40]} 11. Bxf6 {[%emt 0:08:25]} gxf6 {[%emt 0:00:52]} 12. O-O-O {[%emt 0:01:47]} Bd7 {[%emt 0:02:04]} 13. f4 {[%emt 0:04:25]} O-O-O {[%emt 0:00:52]} 14. Kb1 {[%emt 0:00:24]} Kb8 {[%emt 0:03:46]} 15. f5 {[%emt 0:01:48]} (15. Rgf1 $14) 15... Bh6 $11 {[%emt 0:09:15]} 16. Qe2 {[%emt 0:02:51]} Bf4 {[%emt 0:02:54]} 17. Nf3 {[%emt 0:04:50]} Nxb3 {[%emt 0:07:59]} 18. axb3 {[%emt 0:00:06]} Bc6 {[%emt 0:07:49]} 19. Rgf1 {[%emt 0:04:28]} Be3 {[%emt 0:01:13]} 20. fxe6 {[%emt 0:11:47]} fxe6 {[%emt 0:04:13]} 21. Qc4 {[%emt 0:00:11]} (21. Rd3 $14 {ist überlegen.} Bc5 22. Nd2) 21... f5 {[%emt 0:07:34]} 22. exf5 {[%emt 0:07:06]} ({Viel schlechter ist} 22. Qxe6 fxe4 23. Nh4 (23. Nxe4 $2 Rhe8 $19) 23... Rhe8 $15) 22... d5 {[%emt 0:00:33]} 23. Qh4 {[%emt 0:01:36]} d4 {[%emt 0:02:26]} 24. Na4 {[%emt 0:00:33]} Bxa4 {[%emt 0:03:35]} 25. bxa4 {[%emt 0:00:02]} exf5 {[%emt 0:00:12]} 26. Rd3 {[%emt 0:03:04]} f4 {[%emt 0:05:34]} 27. Rfd1 {[%emt 0:01:17][%cal Of3d4]} Ka8 {[%emt 0:03:38]} 28. Qe7 {[%emt 0:04:48]} (28. g3 $11 {ist eher angebracht.}) 28... Qd6 {[%emt 0:06:17]} ({Günstiger ist} 28... Qg6 $15 29. Rb3 Qc6) 29. Qxd6 {[%emt 0:03:27]} Rxd6 30. Nxd4 {[%emt 0:05:14]} Rg8 {[%emt 0:02:11]} 31. Nf5 {[%emt 0:00:14]} Rxd3 {[%emt 0:00:20]} 32. Rxd3 {[%emt 0:00:03][%mdl 4096] Endspiel. KRB-KRN} Bg1 {[%emt 0:02:57]} 33. Nh4 {[%emt 0:02:39]} Bxh2 {[%emt 0:04:05]} 34. Rd5 {[%emt 0:00:03]} Rh8 {[%emt 0:03:39]} 35. Rf5 {[%emt 0:00:18]} Bg3 {[%emt 0:00:30]} 36. Ng6 {[%emt 0:00:35]} Re8 {[%emt 0:03:09]} 37. Nxf4 {[%emt 0:00:59]} Re1+ {[%emt 0:01:05]} 38. Ka2 {[%emt 0:00:03]} Rf1 {[%emt 0:02:12]} 39. Rf8+ {[%emt 0:00:17]} Ka7 {[%emt 0:00:01]} 40. Ng6 {[%emt 0:01:09]} Rg1 {[%emt 0:00:23]} (40... Rxf8 $11 {hält das Gleichgewicht.} 41. Nxf8 b5) 41. Rg8 {[%emt 0:08:31]} h4 {[%emt 0:02:55][%cal Og3f2] Weiß steht etwas besser.} 42. Kb3 {[%emt 0:01:36]} Kb6 {[%emt 0:01:49][%cal Ob6a5]} (42... Rxg2 $2 {ist das falsche Schlagen.} 43. Nxh4 Bxh4 44. Rxg2 $18) 43. c3 {[%emt 0:03:55]} Re1 {[%emt 0:04:24] Gewichteter Fehlerwert: Weiß=0.09 (makellos) /Schwarz=0.13 (sehr präzise) .  Fehler:       	Weiß=3     	Schwarz=2     Ungenau:       	Weiß=2     	Schwarz=2     OK:         	Weiß=19    	Schwarz=12    Bester:       	---       	Schwarz=3} (43... Rxg2 $2 {verliert.} 44. Nxh4 $18) 1/2-1/2

[Event "BL 2024-25"]
[Site "Austria"]
[Date "2024.10.09"]
[Round "1.15"]
[White "Votava, Jan"]
[Black "Naumann, Alexander"]
[Result "1/2-1/2"]
[ECO "D12"]
[WhiteElo "2441"]
[BlackElo "2487"]
[Annotator "TA"]
[PlyCount "64"]
[EventDate "2024.08.28"]
[EventType "team-tourn"]
[EventCountry "AUT"]
[SourceTitle "playchess.com"]
[Source "ChessBase"]
[SourceQuality "1"]
[WhiteTeam "Mayrhofen-Zell-Ziller"]
[BlackTeam "Maria Saal"]
[TimeControl "40/5400+30:1800+30"]

{[%evp 19,64,16,15,8,0,6,12,0,0,0,0,0,0,0,0,0,6,0,0,0,0,0,0,0,0,0,0,0,8,0,0,0,0,0,0,0,0,0,0,0,0,0,0,0,0,0,8]} 1. d4 {[%emt 0:00:14]} d5 {[%emt 0:00:09]} 2. Nf3 {[%emt 0:00:22]} Nf6 {[%emt 0:00:08]} 3. c4 {[%emt 0:00:23]} c6 {[%emt 0:00:07]} 4. e3 {[%emt 0:00:17]} Bf5 {[%emt 0:00:08]} 5. Nc3 {[%emt 0:00:31]} e6 {[%emt 0:00:08]} 6. Bd3 {[%emt 0:03:32]} Bxd3 {[%emt 0:00:16]} 7. Qxd3 {[%emt 0:00:02]} Nbd7 {[%emt 0:00:57]} 8. O-O {[%emt 0:01:50]} Be7 {[%emt 0:03:12]} 9. b3 {[%emt 0:01:50]} O-O {[%emt 0:01:01]} 10. Bb2 {[%emt 0:00:03]} Qc7 {[%emt 0:03:20] The position is equal.} 11. Rad1 {[%emt 0:03:24]} Rad8 {[%emt 0:01:18]} 12. h3 {[%emt 0:03:12]} h6 {[%emt 0:03:15]} 13. Qe2 {[%emt 0:14:07]} Rfe8 {[%emt 0:02:12]} 14. e4 {[%emt 0:07:13]} dxe4 {[%emt 0:02:39]} 15. Nxe4 {[%emt 0:01:37]} Nxe4 {[%emt 0:08:47]} 16. Qxe4 {[%emt 0:00:07]} Bf6 {[%emt 0:00:21]} 17. Rfe1 {[%emt 0:08:53]} c5 {[%emt 0:03:07]} 18. Qe3 {[%emt 0:08:39]} a6 {[%emt 0:05:55]} 19. Bc3 {[%emt 0:13:54]} cxd4 {[%emt 0:06:09]} 20. Nxd4 {[%emt 0:00:47]} Nc5 {[%emt 0:22:22]} 21. Nf3 {[%emt 0:02:24] [#] aiming for Bxf6.} Bxc3 {[%emt 0:01:12]} 22. Qxc3 {[%emt 0:00:23]} Rxd1 {[%emt 0:10:06]} 23. Rxd1 {[%emt 0:00:04]} Rd8 {[%emt 0:00:06]} 24. Rd4 {[%emt 0:08:04]} a5 {[%emt 0:03:35]} 25. Qe3 {[%emt 0:03:10] [#] Rxd8+ is the strong threat.} Rxd4 {[%emt 0:01:39]} 26. Qxd4 $11 {[%emt 0:03:32][%mdl 4096] Endgame. KQN-KQN} b6 {[%emt 0:02:41]} 27. h4 {[%emt 0:02:46]} Qd7 {[%emt 0:02:34]} 28. Qxd7 {[%emt 0:04:36]} Nxd7 {[%emt 0:00:02]} 29. Kf1 {[%emt 0:01:00]} Kf8 {[%emt 0:00:12]} 30. Ke2 {[%emt 0:00:20]} Ke7 {[%emt 0:00:07]} 31. Ne1 {[%emt 0:03:33]} Kd6 {[%emt 0:01:50]} 32. Ke3 {[%emt 0:05:41]} Ke5 {A rather calm draw.   Weighted Error Value: White=0.02 (flawless) /Black=0.01 (flawless) .  OK:         	White=8     	Black=12} 1/2-1/2

[Event "BL 2024-25"]
[Site "Austria"]
[Date "2024.10.09"]
[Round "1.16"]
[White "Halvax, Georg"]
[Black "Maiwald, Jens-Uwe"]
[Result "1/2-1/2"]
[ECO "E11"]
[WhiteElo "2443"]
[BlackElo "2429"]
[Annotator "TA"]
[PlyCount "61"]
[EventDate "2024.08.28"]
[EventType "team-tourn"]
[EventCountry "AUT"]
[SourceTitle "playchess.com"]
[Source "ChessBase"]
[SourceQuality "1"]
[WhiteTeam "Maria Saal"]
[BlackTeam "Mayrhofen-Zell-Ziller"]
[TimeControl "40/5400+30:1800+30"]

{[%evp 12,61,6,6,11,1,0,0,-20,-8,-8,0,-1,-4,-13,0,14,0,0,0,-10,-5,-8,-9,0,0,0,-8,-3,-6,-8,-3,0,-2,-4,0,-3,0,0,0,0,0,0,0,0,0,0,0,0,0,0,-13]} 1. d4 {[%emt 0:00:12]} Nf6 {[%emt 0:00:13]} 2. c4 {[%emt 0:00:15]} e6 {[%emt 0:00:25]} 3. Nf3 {[%emt 0:00:18]} Bb4+ {[%emt 0:00:50]} 4. Nbd2 {[%emt 0:00:15]} O-O {[%emt 0:01:27]} 5. a3 {[%emt 0:00:14]} Be7 {[%emt 0:00:06]} 6. e3 {[%emt 0:01:08]} d5 {[%emt 0:00:48]} 7. Qc2 {[%emt 0:00:45] The position is equal.} b6 {[%emt 0:03:11]} 8. Be2 {[%emt 0:00:34]} c5 {[%emt 0:04:14]} 9. b3 {[%emt 0:02:40]} cxd4 {[%emt 0:02:41]} 10. Nxd4 {[%emt 0:00:54]} Bb7 {[%emt 0:01:31]} 11. O-O {[%emt 0:02:57]} Nc6 {[%emt 0:04:36]} 12. Bb2 {[%emt 0:03:00]} Rc8 {[%emt 0:00:46]} 13. Nxc6 {[%emt 0:06:34]} Bxc6 {[%emt 0:14:07]} 14. Rad1 {[%emt 0:05:10]} Qc7 {[%emt 0:05:19]} 15. Qb1 {[%emt 0:03:02]} Rfd8 {[%emt 0:06:32]} 16. cxd5 {[%emt 0:10:01]} Bxd5 {[%emt 0:02:50]} 17. Ba6 {[%emt 0:00:46][%cal Od1c1] [#] Threatens to win with Rc1!} Bb7 {[%emt 0:04:20]} (17... Ng4 {keeps more tension.} 18. g3 Bb7 19. Bxb7 Qxb7 20. h3 Nf6) 18. Bxb7 {[%emt 0:11:06]} Qxb7 {[%emt 0:00:10]} 19. Nc4 {[%emt 0:00:17]} Ne4 {[%emt 0:06:44] Black wants to play ...b5.} 20. Rxd8+ {[%emt 0:03:36]} Rxd8 {[%emt 0:00:07]} 21. Rd1 {[%emt 0:00:31] Inhibits Qd5.} Rxd1+ {[%emt 0:10:20]} 22. Qxd1 {[%emt 0:00:06]} Qd5 {[%emt 0:00:36]} 23. Qc2 {[%emt 0:05:13]} f6 {[%emt 0:02:51]} 24. f3 {[%emt 0:10:18]} Nc5 {[%emt 0:05:16]} 25. b4 {[%emt 0:02:38]} Nd7 {[%emt 0:08:28]} 26. e4 {[%emt 0:01:22]} Qc6 {[%emt 0:00:10]} 27. Ne3 {[%emt 0:03:30]} Qxc2 {[%emt 0:01:09]} 28. Nxc2 {[%emt 0:00:09]} a6 {[%emt 0:01:24]} 29. Kf2 {[%emt 0:01:37]} Bd6 {[%emt 0:02:18]} 30. g3 {[%emt 0:01:07]} b5 {[%emt 0:01:45]} 31. Bd4 {[%emt 0:01:50] An even fight not without its subleties.   Weighted Error Value: White=0.02 (flawless) /Black=0.01 (flawless) .  OK:         	White=11    	Black=10} 1/2-1/2

[Event "BL 2024-25"]
[Site "Austria"]
[Date "2024.10.09"]
[Round "1.17"]
[White "Platzgummer, Fabian"]
[Black "Bauer, Sebastian"]
[Result "1/2-1/2"]
[ECO "A05"]
[WhiteElo "2301"]
[BlackElo "2334"]
[Annotator "RC"]
[PlyCount "65"]
[EventDate "2024.08.28"]
[EventType "team-tourn"]
[EventCountry "AUT"]
[SourceTitle "playchess.com"]
[Source "ChessBase"]
[SourceQuality "1"]
[WhiteTeam "Mayrhofen-Zell-Ziller"]
[BlackTeam "Maria Saal"]
[TimeControl "40/5400+30:1800+30"]

1. Nf3 {[%emt 0:00:04]} Nf6 {[%emt 0:00:11]} 2. g3 {[%emt 0:00:15]} g6 {[%emt 0:00:07]} 3. b3 {[%emt 0:00:32]} d5 {[%emt 0:00:10]} 4. Bb2 {[%emt 0:00:07]} c5 {[%emt 0:00:12]} 5. Bg2 {[%emt 0:00:29]} Bg7 {[%emt 0:00:11]} 6. O-O {[%emt 1:32:03]} O-O {[%emt 0:00:10]} 7. e3 {[%emt 0:00:00]} Nc6 {[%emt 0:08:10]} 8. d4 {[%emt 0:00:00]} cxd4 {[%emt 0:07:24]} 9. Nxd4 {[%emt 0:00:00]} Bg4 {[%emt 0:03:18]} 10. Nxc6 {[%emt 0:00:00]} bxc6 {[%emt 0:02:59]} 11. Qd2 {[%emt 0:00:00]} Qc8 {[%emt 0:07:32]} 12. c4 {[%emt 0:00:00]} Bh3 {[%emt 0:05:43]} 13. Rc1 {[%emt 0:00:00]} Qf5 {[%emt 0:10:04]} 14. Qe2 {[%emt 0:00:00]} e5 {[%emt 0:06:41]} 15. Qf3 {[%emt 0:00:00]} Qe6 {[%emt 0:13:36]} 16. Bxh3 {[%emt 0:00:00]} Qxh3 {[%emt 0:00:22]} 17. Bxe5 {[%emt 0:00:00]} Ng4 {[%emt 0:04:31]} 18. Bxg7 {[%emt 0:00:00]} Qxh2+ {[%emt 0:00:21]} 19. Kf1 {[%emt 0:00:00]} Kxg7 {[%emt 0:00:10]} 20. Ke2 {[%emt 0:00:00]} Ne5 {[%emt 0:02:10]} 21. Qh1 {[%emt 0:00:00]} Qxh1 {[%emt 0:00:24]} 22. Rxh1 {[%emt 0:00:00]} dxc4 {[%emt 0:00:42]} 23. Nd2 {[%emt 0:00:00]} cxb3 {[%emt 0:05:52]} 24. axb3 {[%emt 0:00:00]} Rfd8 {[%emt 0:01:09]} 25. Ra5 {[%emt 0:00:00]} Nd3 {[%emt 0:02:46]} 26. Nf3 {[%emt 0:00:00]} Nb4 {[%emt 0:04:12]} 27. Rh4 {[%emt 0:00:00]} Rd5 {[%emt 0:01:52]} 28. Ra4 {[%emt 0:00:00]} c5 {[%emt 0:02:12]} 29. Rc4 {[%emt 0:00:00]} a5 {[%emt 0:06:01]} 30. e4 {[%emt 0:00:51]} Rd3 {[%emt 0:00:42]} 31. Rcxb4 {[%emt 0:04:04]} Rxf3 {[%emt 0:00:11]} 32. Rb5 {[%emt 0:00:12]} Rf6 {[%emt 0:00:19]} 33. Raxa5 {[%emt 0:00:18]} 1/2-1/2

[Event "BL 2024-25"]
[Site "Austria"]
[Date "2024.10.09"]
[Round "1.18"]
[White "Hartl, Daniel"]
[Black "Schiestl, Josef"]
[Result "1-0"]
[ECO "E63"]
[WhiteElo "2248"]
[BlackElo "2071"]
[Annotator "RC"]
[PlyCount "85"]
[EventDate "2024.08.28"]
[EventType "team-tourn"]
[EventCountry "AUT"]
[SourceTitle "playchess.com"]
[Source "ChessBase"]
[SourceQuality "1"]
[WhiteTeam "Maria Saal"]
[BlackTeam "Mayrhofen-Zell-Ziller"]
[TimeControl "40/5400+30:1800+30"]

1. d4 {[%emt 0:00:07]} Nf6 {[%emt 0:00:09]} 2. c4 {[%emt 0:00:05]} g6 {[%emt 0:00:09]} 3. g3 {[%emt 0:00:20]} Bg7 {[%emt 0:00:13]} 4. Bg2 {[%emt 0:00:07]} O-O {[%emt 0:00:42]} 5. Nc3 {[%emt 0:00:44]} d6 {[%emt 0:00:08]} 6. Nf3 {[%emt 0:00:07]} Nc6 {[%emt 0:00:16]} 7. O-O {[%emt 0:00:23]} a6 {[%emt 0:00:10]} 8. b3 {[%emt 0:04:16]} e5 {[%emt 0:05:58]} 9. dxe5 {[%emt 0:09:23]} dxe5 {[%emt 0:00:41]} 10. Qxd8 {[%emt 0:00:07]} Rxd8 {[%emt 0:00:19]} 11. Bg5 {[%emt 0:00:08]} Be6 {[%emt 0:19:40]} 12. Nd2 {[%emt 0:09:49]} h6 {[%emt 0:17:07]} 13. Bxf6 {[%emt 0:01:06]} Bxf6 {[%emt 0:04:26]} 14. Rfd1 {[%emt 0:04:10]} Be7 {[%emt 0:04:50]} 15. Nd5 {[%emt 0:05:19]} Bxd5 {[%emt 0:01:57]} 16. cxd5 {[%emt 0:00:07]} Nd4 {[%emt 0:00:42]} 17. Kf1 {[%emt 0:14:32]} Rac8 {[%emt 0:16:22]} 18. Nc4 {[%emt 0:07:25]} Bd6 {[%emt 0:04:16]} 19. e3 {[%emt 0:05:18]} Nc2 {[%emt 0:00:37]} 20. Rac1 {[%emt 0:00:22]} Na3 {[%emt 0:00:18]} 21. Nb2 {[%emt 0:12:43]} Kg7 {[%emt 0:02:57]} 22. Nd3 {[%emt 0:00:46]} h5 {[%emt 0:04:18]} 23. Ke2 {[%emt 0:03:46]} Rb8 {[%emt 0:05:08]} 24. f4 {[%emt 0:01:00]} exf4 {[%emt 0:03:38]} 25. gxf4 {[%emt 0:00:07]} Re8 {[%emt 0:01:21]} 26. e4 f6 {[%emt 0:02:57]} 27. Ke3 {[%emt 0:06:19]} Re7 {[%emt 0:00:12]} 28. Bf3 {[%emt 0:07:26]} Rc8 {[%emt 0:00:50]} 29. Rg1 {[%emt 0:01:45]} Kf7 {[%emt 0:00:19]} 30. Rg2 {[%emt 0:03:47]} Rh8 {[%emt 0:00:56]} 31. Nc5 {[%emt 0:00:50]} c6 {[%emt 0:00:39]} 32. dxc6 {[%emt 0:00:18]} bxc6 {[%emt 0:00:03]} 33. Nxa6 {[%emt 0:00:14]} c5 {[%emt 0:01:25]} 34. Rd2 {[%emt 0:01:44]} Nb5 {[%emt 0:00:51]} 35. Nxc5 {[%emt 0:00:39]} g5 {[%emt 0:00:09]} 36. Nd3 {[%emt 0:00:52]} f5 {[%emt 0:02:12]} 37. e5 {[%emt 0:00:32]} gxf4+ {[%emt 0:00:17]} 38. Kxf4 {[%emt 0:00:07]} Bb8 {[%emt 0:01:00]} 39. Bd5+ {[%emt 0:01:14]} Kg7 {[%emt 0:00:17]} 40. Kxf5 {[%emt 0:01:15]} Rf8+ {[%emt 0:01:13]} 41. Ke4 {[%emt 0:03:23]} Ba7 {[%emt 0:02:28]} 42. Rc6 {[%emt 0:06:37]} Rd7 {[%emt 0:06:38]} 43. Nf4 {[%emt 0:03:32]} 1-0